[Event "FIDE Open World Rapid 2024"]
[Site "New York"]
[Date "2024.12.27"]
[Round "7.19"]
[White "Nogerbek, Kazybek"]
[Black "Robson, Ray"]
[Result "1/2-1/2"]
[ECO "D38"]
[WhiteElo "2527"]
[BlackElo "2700"]
[Annotator "ChessBase"]
[PlyCount "92"]
[EventDate "2024.12.14"]
[EventType "swiss"]
[EventCountry "USA"]
[SourceTitle "playchess.com"]
[Source "ChessBase"]
[SourceQuality "1"]
[TimeControl "900+10"]

1. d4 {[%emt 0:00:03]} Nf6 {[%emt 0:00:03]} 2. c4 {[%emt 0:00:02]} e6 {[%emt 0:00:04]} 3. Nf3 {[%emt 0:00:02]} d5 {[%emt 0:00:09]} 4. Nc3 {[%emt 0:00:13]} Bb4 {[%emt 0:00:21]} 5. Bg5 {[%emt 0:00:15]} h6 {[%emt 0:00:11]} 6. Bxf6 {[%emt 0:00:06]} Qxf6 {[%emt 0:00:03]} 7. e3 {[%emt 0:01:18]} O-O {[%emt 0:00:13]} 8. Rc1 {[%emt 0:00:01]} dxc4 {[%emt 0:01:21]} 9. Bxc4 {[%emt 0:00:05]} c5 {[%emt 0:00:17]} 10. O-O {[%emt 0:00:42]} cxd4 {[%emt 0:00:26]} 11. Nxd4 {[%emt 0:01:41]} Bd7 {[%emt 0:00:52]} 12. Qb3 {[%emt 0:00:10]} Nc6 {[%emt 0:00:18]} 13. Nxc6 {[%emt 0:00:03]} Bxc3 {[%emt 0:00:06]} 14. Rxc3 {[%emt 0:00:03]} Bxc6 {[%emt 0:00:10]} 15. Bb5 {[%emt 0:00:01]} Bd5 {[%emt 0:00:42]} 16. Bc4 {[%emt 0:00:03]} Bxc4 {[%emt 0:02:30]} 17. Rxc4 {[%emt 0:00:02]} b6 {[%emt 0:00:12]} 18. Qc3 {[%emt 0:00:28]} Qxc3 {[%emt 0:01:03]} 19. Rxc3 {[%emt 0:00:03]} Rac8 {[%emt 0:02:09]} 20. Rfc1 {[%emt 0:00:05]} Rxc3 {[%emt 0:00:00]} 21. Rxc3 {[%emt 0:00:02]} Rd8 {[%emt 0:00:06]} 22. g4 {[%emt 0:00:03]} Rd2 {[%emt 0:01:06]} 23. Rc8+ {[%emt 0:00:28]} Kh7 {[%emt 0:00:03]} 24. Rc7 {[%emt 0:00:02]} a5 {[%emt 0:04:01]} 25. Rxf7 {[%emt 0:00:52]} Rxb2 {[%emt 0:00:03]} 26. Rb7 {[%emt 0:01:07]} Kg6 {[%emt 0:01:52]} 27. Kg2 {[%emt 0:00:21]} b5 {[%emt 0:00:16]} 28. a4 {[%emt 0:01:09]} Rb4 {[%emt 0:00:02]} 29. axb5 {[%emt 0:00:11]} Rxg4+ {[%emt 0:00:05]} 30. Kf3 {[%emt 0:00:07]} Rb4 {[%emt 0:00:09]} 31. b6 {[%emt 0:00:05]} Kf6 {[%emt 0:00:35]} 32. Rb8 {[%emt 0:00:04]} a4 {[%emt 0:00:15]} 33. b7 {[%emt 0:00:03]} Kf7 {[%emt 0:00:29]} 34. Ra8 {[%emt 0:00:17]} Rxb7 {[%emt 0:00:03]} 35. Rxa4 {[%emt 0:00:02]} Rb1 {[%emt 0:00:03]} 36. h4 {[%emt 0:00:28]} Kf6 {[%emt 0:00:29]} 37. Kg4 {[%emt 0:01:32]} Rb5 {[%emt 0:00:21]} 38. h5 {[%emt 0:01:57]} Rg5+ {[%emt 0:00:09]} 39. Kh4 {[%emt 0:00:01]} Rg1 {[%emt 0:00:11]} 40. Ra5 {[%emt 0:01:01]} e5 {[%emt 0:00:10]} 41. e4 {[%emt 0:00:46]} Rh1+ {[%emt 0:00:10]} 42. Kg4 {[%emt 0:00:06]} Rg1+ {[%emt 0:00:02]} 43. Kh3 {[%emt 0:00:21]} Rh1+ {[%emt 0:00:17]} 44. Kg4 {[%emt 0:00:12]} Rg1+ {[%emt 0:00:06]} 45. Kh4 {[%emt 0:00:07]} Rh1+ {[%emt 0:00:13]} 46. Kg4 {[%emt 0:00:08]} Rg1+ {[%emt 0:00:04]} 1/2-1/2

[Event "FIDE Open World Rapid 2024"]
[Site "New York"]
[Date "2024.12.27"]
[Round "7.20"]
[White "Bjerre, Jonas Buhl"]
[Black "Esipenko, Andrey"]
[Result "0-1"]
[ECO "C77"]
[WhiteElo "2642"]
[BlackElo "2682"]
[Annotator "ChessBase"]
[PlyCount "70"]
[EventDate "2024.12.14"]
[EventType "swiss"]
[EventCountry "USA"]
[SourceTitle "playchess.com"]
[Source "ChessBase"]
[SourceQuality "1"]
[TimeControl "900+10"]

1. e4 {[%emt 0:00:01]} e5 {[%emt 0:00:02]} 2. Nf3 {[%emt 0:00:02]} Nc6 {[%emt 0:00:02]} 3. Bb5 {[%emt 0:00:01]} a6 {[%emt 0:00:01]} 4. Ba4 {[%emt 0:00:01]} Nf6 {[%emt 0:00:03]} 5. d3 {[%emt 0:00:02]} b5 {[%emt 0:00:07]} 6. Bb3 {[%emt 0:00:01]} Bc5 {[%emt 0:00:06]} 7. Bg5 {[%emt 0:00:02]} h6 {[%emt 0:00:13]} 8. Bh4 {[%emt 0:00:02]} d6 {[%emt 0:00:18]} 9. c3 {[%emt 0:00:03]} Bb6 {[%emt 0:00:06]} 10. a4 {[%emt 0:00:08]} Rb8 {[%emt 0:00:05]} 11. axb5 {[%emt 0:00:20]} axb5 {[%emt 0:00:02]} 12. Na3 {[%emt 0:00:11]} Ne7 {[%emt 0:00:08]} 13. Nxb5 {[%emt 0:01:05]} Ng6 {[%emt 0:00:04]} 14. Bg3 {[%emt 0:00:33]} Bg4 {[%emt 0:00:03]} 15. Na3 {[%emt 0:00:49]} O-O {[%emt 0:00:30]} 16. Nc4 {[%emt 0:01:28]} Bxf3 {[%emt 0:00:14]} 17. Qxf3 {[%emt 0:00:05]} Bxf2+ {[%emt 0:00:10]} 18. Bxf2 {[%emt 0:00:11]} Rxb3 {[%emt 0:00:08]} 19. O-O {[%emt 0:00:11]} Qd7 {[%emt 0:01:06]} 20. Ra7 {[%emt 0:01:12]} Rfb8 {[%emt 0:00:24]} 21. h3 {[%emt 0:00:28]} d5 {[%emt 0:02:21]} 22. exd5 {[%emt 0:00:14]} Nxd5 {[%emt 0:00:05]} 23. d4 {[%emt 0:01:39]} exd4 {[%emt 0:02:53]} 24. Bxd4 {[%emt 0:00:02]} f6 {[%emt 0:00:01]} 25. Rd1 {[%emt 0:01:23]} Qe6 {[%emt 0:01:37]} 26. Ne3 {[%emt 0:02:25]} Ndf4 {[%emt 0:02:39]} 27. Rxc7 {[%emt 0:02:24]} Rxb2 {[%emt 0:00:09]} 28. Kh1 {[%emt 0:00:20]} Rb1 {[%emt 0:02:05]} 29. Rxb1 {[%emt 0:00:20]} Rxb1+ {[%emt 0:00:03]} 30. Kh2 {[%emt 0:00:01]} Rb2 {[%emt 0:01:21]} 31. Rb7 {[%emt 0:03:06]} Rd2 {[%emt 0:00:18]} 32. Ra7 {[%emt 0:00:09]} Nxg2 {[%emt 0:01:05]} 33. Nxg2 {[%emt 0:01:16]} Nh4 {[%emt 0:00:03]} 34. Qe3 {[%emt 0:00:10]} Rxg2+ {[%emt 0:00:20]} 35. Kh1 {[%emt 0:00:01]} Qc6 {[%emt 0:00:38]} 0-1

[Event "FIDE Open World Rapid 2024"]
[Site "New York"]
[Date "2024.12.27"]
[Round "7.20"]
[White "Manafov, Vugar"]
[Black "Amar, Elham"]
[Result "1-0"]
[ECO "A07"]
[WhiteElo "2431"]
[BlackElo "2534"]
[Annotator "ChessBase"]
[PlyCount "73"]
[EventDate "2024.12.14"]
[EventType "swiss"]
[EventCountry "USA"]
[SourceTitle "playchess.com"]
[Source "ChessBase"]
[SourceQuality "1"]
[TimeControl "900+10"]

1. Nf3 {[%emt 0:00:02]} d5 {[%emt 0:00:03]} 2. g3 {[%emt 0:00:02]} g6 {[%emt 0:00:04]} 3. Bg2 {[%emt 0:00:02]} Bg7 {[%emt 0:00:01]} 4. O-O {[%emt 0:00:02]} e5 {[%emt 0:00:01]} 5. d3 {[%emt 0:00:02]} Nc6 {[%emt 0:00:02]} 6. e4 {[%emt 0:00:05]} Nf6 {[%emt 0:00:04]} 7. Nc3 {[%emt 0:00:03]} d4 {[%emt 0:00:17]} 8. Ne2 {[%emt 0:00:03]} O-O {[%emt 0:00:03]} 9. Nd2 {[%emt 0:00:03]} a5 {[%emt 0:00:10]} 10. h3 {[%emt 0:00:20]} Nd7 {[%emt 0:00:17]} 11. f4 {[%emt 0:00:04]} exf4 {[%emt 0:00:07]} 12. gxf4 {[%emt 0:00:02]} Nc5 {[%emt 0:00:25]} 13. f5 {[%emt 0:00:36]} Ne5 {[%emt 0:01:05]} 14. Nf3 {[%emt 0:00:12]} Nxf3+ {[%emt 0:00:06]} 15. Rxf3 {[%emt 0:00:02]} Nd7 {[%emt 0:00:10]} 16. Bf4 {[%emt 0:00:27]} Ne5 {[%emt 0:00:26]} 17. Rf2 {[%emt 0:00:17]} Re8 {[%emt 0:01:00]} 18. Qd2 {[%emt 0:01:31]} Ra6 {[%emt 0:01:40]} 19. Raf1 {[%emt 0:00:18]} a4 {[%emt 0:00:20]} 20. Kh1 {[%emt 0:01:12]} c5 {[%emt 0:00:57]} 21. Ng1 {[%emt 0:02:00]} c4 {[%emt 0:01:20]} 22. Nf3 {[%emt 0:00:07]} Nxf3 {[%emt 0:00:07]} 23. Rxf3 {[%emt 0:00:02]} c3 {[%emt 0:00:46]} 24. bxc3 {[%emt 0:00:23]} dxc3 {[%emt 0:00:01]} 25. Qc1 {[%emt 0:00:54]} Bd4 {[%emt 0:01:41]} 26. Bh6 {[%emt 0:01:52]} gxf5 {[%emt 0:01:27]} 27. exf5 {[%emt 0:00:26]} Kh8 {[%emt 0:00:58]} 28. Rg3 {[%emt 0:04:13]} Rg8 {[%emt 0:02:11]} 29. Rxg8+ {[%emt 0:00:23]} Kxg8 {[%emt 0:01:39]} 30. Be3 {[%emt 0:00:51]} Bg7 {[%emt 0:00:56]} 31. Qe1 {[%emt 0:00:25]} Ra5 {[%emt 0:01:01]} 32. Be4 {[%emt 0:00:09]} Qf6 {[%emt 0:00:30]} 33. Qg3 {[%emt 0:00:38]} Bxf5 {[%emt 0:00:28]} 34. Qb8+ {[%emt 0:00:16]} Bf8 {[%emt 0:00:00]} 35. Bxf5 {[%emt 0:00:01]} Qe7 {[%emt 0:00:21]} 36. Rg1+ {[%emt 0:00:09]} Kh8 {[%emt 0:00:01]} 37. Qg3 {[%emt 0:00:01]} 1-0

[Event "FIDE Open World Rapid 2024"]
[Site "New York"]
[Date "2024.12.27"]
[Round "7.21"]
[White "Jumabayev, Rinat"]
[Black "Lu, Shanglei"]
[Result "1/2-1/2"]
[ECO "E04"]
[WhiteElo "2573"]
[BlackElo "2609"]
[Annotator "ChessBase"]
[PlyCount "58"]
[EventDate "2024.12.14"]
[EventType "swiss"]
[EventCountry "USA"]
[SourceTitle "playchess.com"]
[Source "ChessBase"]
[SourceQuality "1"]
[TimeControl "900+10"]

1. Nf3 {[%emt 0:00:02]} Nf6 {[%emt 0:00:02]} 2. g3 {[%emt 0:00:01]} d5 {[%emt 0:00:02]} 3. Bg2 {[%emt 0:00:04]} c5 {[%emt 0:00:04]} 4. O-O {[%emt 0:00:03]} Nc6 {[%emt 0:00:01]} 5. d4 {[%emt 0:00:01]} e6 {[%emt 0:00:01]} 6. c4 {[%emt 0:00:03]} dxc4 {[%emt 0:00:01]} 7. dxc5 {[%emt 0:00:02]} Qxd1 {[%emt 0:00:02]} 8. Rxd1 {[%emt 0:00:03]} Bxc5 {[%emt 0:00:01]} 9. Nbd2 {[%emt 0:00:03]} c3 {[%emt 0:00:01]} 10. bxc3 {[%emt 0:00:01]} O-O {[%emt 0:00:02]} 11. Nb3 {[%emt 0:00:10]} Be7 {[%emt 0:00:02]} 12. Nfd4 {[%emt 0:00:12]} Nxd4 {[%emt 0:00:01]} 13. cxd4 {[%emt 0:00:02]} Nd5 {[%emt 0:00:03]} 14. Bd2 {[%emt 0:00:38]} f5 {[%emt 0:00:01]} 15. Na5 {[%emt 0:00:12]} b6 {[%emt 0:00:01]} 16. Nc6 {[%emt 0:00:04]} Bf6 {[%emt 0:00:01]} 17. e3 {[%emt 0:00:26]} Bb7 {[%emt 0:00:02]} 18. Nb4 {[%emt 0:00:03]} Rab8 {[%emt 0:00:02]} 19. Rdc1 {[%emt 0:00:37]} Rfc8 {[%emt 0:01:20]} 20. a4 {[%emt 0:05:44]} Be7 {[%emt 0:03:47]} 21. Nxd5 {[%emt 0:04:12]} Bxd5 {[%emt 0:01:06]} 22. Bf1 {[%emt 0:00:02]} Bd6 {[%emt 0:02:16]} 23. Ba6 {[%emt 0:00:19]} Rxc1+ {[%emt 0:00:31]} 24. Rxc1 {[%emt 0:00:01]} Kf7 {[%emt 0:00:14]} 25. Kf1 {[%emt 0:00:39]} g5 {[%emt 0:00:04]} 26. e4 {[%emt 0:00:57]} Bxe4 {[%emt 0:00:57]} 27. Bxg5 {[%emt 0:00:01]} Bb7 {[%emt 0:00:56]} 28. Bxb7 {[%emt 0:00:47]} Rxb7 {[%emt 0:00:01]} 29. Rc6 {[%emt 0:00:01]} Rd7 {[%emt 0:02:35]} 1/2-1/2

[Event "FIDE Open World Rapid 2024"]
[Site "New York"]
[Date "2024.12.27"]
[Round "7.21"]
[White "Brodsky, David"]
[Black "Adewumi, Tanitoluwa"]
[Result "1-0"]
[ECO "E12"]
[WhiteElo "2538"]
[BlackElo "2349"]
[Annotator "ChessBase"]
[PlyCount "74"]
[EventDate "2024.12.14"]
[EventType "swiss"]
[EventCountry "USA"]
[SourceTitle "playchess.com"]
[Source "ChessBase"]
[SourceQuality "1"]
[TimeControl "900+10"]

1. d4 {[%emt 0:00:02]} Nf6 {[%emt 0:00:02]} 2. c4 {[%emt 0:00:01]} e6 {[%emt 0:00:01]} 3. Nf3 {[%emt 0:00:02]} b6 {[%emt 0:00:01]} 4. a3 {[%emt 0:00:22]} Bb7 {[%emt 0:00:02]} 5. Nc3 {[%emt 0:00:09]} d5 {[%emt 0:00:06]} 6. cxd5 {[%emt 0:00:15]} Nxd5 {[%emt 0:00:05]} 7. Qc2 {[%emt 0:00:02]} Be7 {[%emt 0:00:07]} 8. e4 {[%emt 0:00:09]} Nxc3 {[%emt 0:00:04]} 9. bxc3 {[%emt 0:00:02]} O-O {[%emt 0:00:03]} 10. Bd3 {[%emt 0:00:16]} c5 {[%emt 0:00:00]} 11. O-O {[%emt 0:00:14]} Nd7 {[%emt 0:00:12]} 12. Bf4 {[%emt 0:00:53]} Rc8 {[%emt 0:00:28]} 13. Qe2 {[%emt 0:00:26]} cxd4 {[%emt 0:00:02]} 14. cxd4 {[%emt 0:00:02]} Rc3 {[%emt 0:00:03]} 15. Rfc1 {[%emt 0:02:42]} Rxd3 {[%emt 0:09:24]} 16. Qxd3 {[%emt 0:00:45]} Nc5 {[%emt 0:00:01]} 17. Qc3 {[%emt 0:03:07]} Nxe4 {[%emt 0:00:01]} 18. Qc7 {[%emt 0:00:01]} Bd5 {[%emt 0:00:18]} 19. Qxa7 {[%emt 0:00:51]} b5 {[%emt 0:00:52]} 20. Rc7 {[%emt 0:01:25]} Bh4 {[%emt 0:00:56]} 21. Bg3 {[%emt 0:00:44]} Bf6 {[%emt 0:01:09]} 22. Ne5 {[%emt 0:01:31]} h5 {[%emt 0:01:29]} 23. Rxf7 {[%emt 0:01:50]} Bxe5 {[%emt 0:01:45]} 24. Rxf8+ {[%emt 0:00:01]} Qxf8 {[%emt 0:00:03]} 25. dxe5 {[%emt 0:00:02]} Qf5 {[%emt 0:01:21]} 26. Qe3 {[%emt 0:00:27]} Qg6 {[%emt 0:00:29]} 27. Qf4 {[%emt 0:00:53]} Nc3 {[%emt 0:00:10]} 28. Qe3 {[%emt 0:00:14]} Ne4 {[%emt 0:00:04]} 29. h4 {[%emt 0:00:29]} Qg4 {[%emt 0:00:25]} 30. Qf4 {[%emt 0:00:17]} Qg6 {[%emt 0:00:08]} 31. Rc1 {[%emt 0:00:11]} Kh7 {[%emt 0:00:07]} 32. Kh2 {[%emt 0:00:14]} Qe8 {[%emt 0:00:20]} 33. f3 {[%emt 0:00:16]} Nxg3 {[%emt 0:00:06]} 34. Qxg3 {[%emt 0:00:02]} Qf8 {[%emt 0:00:08]} 35. Rc7 {[%emt 0:00:16]} Kg8 {[%emt 0:00:16]} 36. Qg5 {[%emt 0:00:09]} Ba8 {[%emt 0:00:10]} 37. Rd7 {[%emt 0:00:46]} Kh7 {[%emt 0:00:10]} 1-0

[Event "FIDE Open World Rapid 2024"]
[Site "New York"]
[Date "2024.12.27"]
[Round "7.22"]
[White "Deac, Bogdan-Daniel"]
[Black "Theodorou, Nikolas"]
[Result "1-0"]
[ECO "B32"]
[WhiteElo "2696"]
[BlackElo "2600"]
[Annotator "ChessBase"]
[PlyCount "175"]
[EventDate "2024.12.14"]
[EventType "swiss"]
[EventCountry "USA"]
[SourceTitle "playchess.com"]
[Source "ChessBase"]
[SourceQuality "1"]
[TimeControl "900+10"]

1. e4 {[%emt 0:00:02]} c5 {[%emt 0:00:02]} 2. Nf3 {[%emt 0:00:03]} Nc6 {[%emt 0:00:02]} 3. d4 {[%emt 0:00:12]} cxd4 {[%emt 0:00:02]} 4. Nxd4 {[%emt 0:00:02]} e5 {[%emt 0:00:02]} 5. Nb5 {[%emt 0:00:03]} d6 {[%emt 0:00:01]} 6. N1c3 {[%emt 0:00:02]} a6 {[%emt 0:00:04]} 7. Na3 {[%emt 0:00:01]} Be6 {[%emt 0:00:06]} 8. Nc4 {[%emt 0:00:06]} b5 {[%emt 0:00:15]} 9. Ne3 {[%emt 0:00:22]} Nf6 {[%emt 0:00:02]} 10. Bd3 {[%emt 0:00:19]} g6 {[%emt 0:00:01]} 11. a4 {[%emt 0:01:23]} b4 {[%emt 0:00:13]} 12. Ncd5 {[%emt 0:00:03]} Bg7 {[%emt 0:00:50]} 13. Bd2 {[%emt 0:01:05]} a5 {[%emt 0:00:37]} 14. Bb5 {[%emt 0:04:52]} Rc8 {[%emt 0:00:09]} 15. Nxf6+ {[%emt 0:00:10]} Bxf6 {[%emt 0:00:45]} 16. c3 {[%emt 0:00:16]} bxc3 {[%emt 0:02:04]} 17. bxc3 {[%emt 0:00:10]} O-O {[%emt 0:00:15]} 18. O-O {[%emt 0:00:04]} Bg5 {[%emt 0:01:29]} 19. Qe2 {[%emt 0:00:11]} Ne7 {[%emt 0:00:52]} 20. Rad1 {[%emt 0:03:12]} Qc7 {[%emt 0:03:09]} 21. c4 {[%emt 0:00:55]} Nc6 {[%emt 0:00:48]} 22. Bc3 {[%emt 0:01:48]} Bxe3 {[%emt 0:05:08]} 23. Qxe3 {[%emt 0:00:39]} Nb4 {[%emt 0:00:02]} 24. Bb2 {[%emt 0:02:18]} Qb8 {[%emt 0:00:01]} 25. Rc1 {[%emt 0:00:36]} Na2 {[%emt 0:00:35]} 26. Rc2 {[%emt 0:00:17]} Nb4 {[%emt 0:00:01]} 27. Rcc1 {[%emt 0:00:07]} Na2 {[%emt 0:00:02]} 28. Ra1 {[%emt 0:00:09]} Nb4 {[%emt 0:00:07]} 29. Rfc1 {[%emt 0:00:09]} Rc5 {[%emt 0:00:05]} 30. Ba3 {[%emt 0:00:12]} Rfc8 {[%emt 0:00:07]} 31. Qb3 {[%emt 0:00:07]} Qb7 {[%emt 0:00:43]} 32. f3 {[%emt 0:00:05]} Qc7 {[%emt 0:00:51]} 33. Bxb4 {[%emt 0:00:12]} axb4 {[%emt 0:00:02]} 34. Qxb4 {[%emt 0:00:02]} Qb6 {[%emt 0:00:01]} 35. Kh1 {[%emt 0:00:23]} Bxc4 {[%emt 0:00:25]} 36. Rd1 {[%emt 0:00:18]} Be2 {[%emt 0:00:34]} 37. Rdb1 {[%emt 0:00:01]} Bd3 {[%emt 0:00:18]} 38. Rd1 {[%emt 0:00:01]} Bc2 {[%emt 0:00:22]} 39. Rd5 {[%emt 0:00:09]} Bxa4 {[%emt 0:00:12]} 40. Qxa4 {[%emt 0:00:10]} Rxd5 {[%emt 0:00:14]} 41. exd5 {[%emt 0:00:02]} Qf2 {[%emt 0:00:08]} 42. Bf1 {[%emt 0:00:11]} Rc2 {[%emt 0:00:09]} 43. h3 {[%emt 0:00:12]} Kg7 {[%emt 0:00:03]} 44. Qb4 {[%emt 0:00:15]} Rc5 {[%emt 0:00:11]} 45. Rd1 {[%emt 0:00:20]} h5 {[%emt 0:00:08]} 46. Qd2 {[%emt 0:00:04]} Qh4 {[%emt 0:00:08]} 47. Kh2 {[%emt 0:00:26]} Qa4 {[%emt 0:00:15]} 48. Rc1 {[%emt 0:00:10]} Rxd5 {[%emt 0:00:02]} 49. Qxd5 {[%emt 0:00:07]} Qf4+ {[%emt 0:00:01]} 50. g3 {[%emt 0:00:12]} Qxc1 {[%emt 0:00:03]} 51. Kg2 {[%emt 0:00:11]} Qb2+ {[%emt 0:00:14]} 52. Kg1 {[%emt 0:00:01]} Qb6+ {[%emt 0:00:01]} 53. Kh2 {[%emt 0:00:01]} g5 {[%emt 0:00:42]} 54. Qd2 {[%emt 0:00:12]} f6 {[%emt 0:00:08]} 55. Bc4 {[%emt 0:00:12]} Qc5 {[%emt 0:00:08]} 56. Bd5 {[%emt 0:00:04]} h4 {[%emt 0:00:16]} 57. gxh4 {[%emt 0:00:06]} gxh4 {[%emt 0:00:01]} 58. Qg2+ {[%emt 0:00:23]} Kf8 {[%emt 0:00:21]} 59. Qg8+ {[%emt 0:00:05]} Ke7 {[%emt 0:00:01]} 60. Qf7+ {[%emt 0:00:03]} Kd8 {[%emt 0:00:01]} 61. Qxf6+ {[%emt 0:00:02]} Kc7 {[%emt 0:00:05]} 62. Qg7+ {[%emt 0:00:36]} Kb6 {[%emt 0:00:04]} 63. Be4 {[%emt 0:00:04]} d5 {[%emt 0:00:14]} 64. Bf5 {[%emt 0:00:23]} Qe3 {[%emt 0:00:27]} 65. Qg1 {[%emt 0:00:03]} Qxg1+ {[%emt 0:00:14]} 66. Kxg1 {[%emt 0:00:01]} Kc5 {[%emt 0:00:04]} 67. Kf2 {[%emt 0:00:02]} Kd6 {[%emt 0:00:31]} 68. Bh7 {[%emt 0:00:19]} Ke7 {[%emt 0:00:00]} 69. Ke3 {[%emt 0:00:08]} Kd6 {[%emt 0:00:00]} 70. Kd2 {[%emt 0:00:11]} Ke7 {[%emt 0:00:04]} 71. Bg8 {[%emt 0:00:20]} Kd6 {[%emt 0:00:01]} 72. Kc3 {[%emt 0:00:03]} Kc5 {[%emt 0:00:08]} 73. Bf7 {[%emt 0:00:07]} Kd6 {[%emt 0:00:20]} 74. Bg8 {[%emt 0:00:20]} Kc5 {[%emt 0:00:01]} 75. Bh7 {[%emt 0:00:12]} Kd6 {[%emt 0:00:03]} 76. Kb4 {[%emt 0:00:11]} Kc6 {[%emt 0:00:03]} 77. Bc2 {[%emt 0:00:11]} Kd6 {[%emt 0:00:08]} 78. Be4 {[%emt 0:00:11]} Kc6 {[%emt 0:00:19]} 79. Bg6 {[%emt 0:00:09]} Kd6 {[%emt 0:00:03]} 80. Bf7 {[%emt 0:00:03]} Kc6 {[%emt 0:00:02]} 81. Bh5 {[%emt 0:00:05]} Kd6 {[%emt 0:00:13]} 82. Kb5 {[%emt 0:00:09]} Ke6 {[%emt 0:00:39]} 83. Bg4+ {[%emt 0:00:03]} Kd6 {[%emt 0:00:01]} 84. Bf5 {[%emt 0:00:04]} e4 {[%emt 0:00:29]} 85. f4 {[%emt 0:00:01]} e3 {[%emt 0:00:11]} 86. Bg4 {[%emt 0:00:02]} Ke7 {[%emt 0:00:15]} 87. Kc5 {[%emt 0:00:01]} Kf6 {[%emt 0:00:01]} 88. Kd4 {[%emt 0:00:00]} 1-0

[Event "FIDE Open World Rapid 2024"]
[Site "New York"]
[Date "2024.12.27"]
[Round "7.22"]
[White "Schnaider, Ilan"]
[Black "Benjamin, Joel"]
[Result "1/2-1/2"]
[ECO "D00"]
[WhiteElo "2392"]
[BlackElo "2473"]
[Annotator "ChessBase"]
[PlyCount "112"]
[EventDate "2024.12.14"]
[EventType "swiss"]
[EventCountry "USA"]
[SourceTitle "playchess.com"]
[Source "ChessBase"]
[SourceQuality "1"]
[TimeControl "900+10"]

1. d4 {[%emt 0:00:03]} Nf6 {[%emt 0:00:02]} 2. Nc3 {[%emt 0:00:03]} d5 {[%emt 0:00:14]} 3. Bf4 {[%emt 0:00:03]} a6 {[%emt 0:00:02]} 4. e3 {[%emt 0:00:03]} e6 {[%emt 0:00:01]} 5. g4 {[%emt 0:00:02]} Bd6 {[%emt 0:00:06]} 6. Qf3 {[%emt 0:00:07]} Bxf4 {[%emt 0:00:25]} 7. Qxf4 {[%emt 0:00:02]} Qd6 {[%emt 0:00:02]} 8. Qxd6 {[%emt 0:00:05]} cxd6 {[%emt 0:00:02]} 9. f3 {[%emt 0:00:01]} Nc6 {[%emt 0:00:24]} 10. O-O-O {[%emt 0:00:19]} h6 {[%emt 0:00:45]} 11. Nh3 {[%emt 0:01:36]} b5 {[%emt 0:00:10]} 12. Nf2 {[%emt 0:00:26]} Bb7 {[%emt 0:00:13]} 13. Bg2 {[%emt 0:01:50]} Rc8 {[%emt 0:00:49]} 14. h4 {[%emt 0:01:05]} Na5 {[%emt 0:01:01]} 15. Rhe1 {[%emt 0:04:42]} Nc4 {[%emt 0:00:40]} 16. e4 {[%emt 0:00:41]} b4 {[%emt 0:00:30]} 17. Nb1 {[%emt 0:00:29]} Ke7 {[%emt 0:02:46]} 18. Nd2 {[%emt 0:00:47]} a5 {[%emt 0:00:35]} 19. Nxc4 {[%emt 0:02:31]} Rxc4 {[%emt 0:01:39]} 20. Bf1 {[%emt 0:02:01]} Rc7 {[%emt 0:00:48]} 21. Bd3 {[%emt 0:00:22]} dxe4 {[%emt 0:01:00]} 22. fxe4 {[%emt 0:00:10]} e5 {[%emt 0:00:33]} 23. dxe5 {[%emt 0:00:32]} dxe5 {[%emt 0:00:03]} 24. g5 {[%emt 0:00:05]} Nh5 {[%emt 0:01:00]} 25. Ng4 {[%emt 0:00:10]} Rc5 {[%emt 0:00:38]} 26. gxh6 {[%emt 0:00:16]} g6 {[%emt 0:00:11]} 27. b3 {[%emt 0:00:14]} Nf4 {[%emt 0:01:18]} 28. Bc4 {[%emt 0:00:20]} Bc8 {[%emt 0:00:53]} 29. Nf2 {[%emt 0:00:40]} Rxh6 {[%emt 0:00:13]} 30. Rh1 {[%emt 0:00:07]} f6 {[%emt 0:00:49]} 31. Kb2 {[%emt 0:00:05]} Bb7 {[%emt 0:00:38]} 32. a3 {[%emt 0:00:14]} bxa3+ {[%emt 0:00:27]} 33. Kxa3 {[%emt 0:00:01]} Rc8 {[%emt 0:00:02]} 34. Kb2 {[%emt 0:00:16]} a4 {[%emt 0:00:20]} 35. Ra1 {[%emt 0:00:09]} axb3 {[%emt 0:00:12]} 36. cxb3 {[%emt 0:00:02]} Ra8 {[%emt 0:00:08]} 37. Rxa8 {[%emt 0:00:11]} Bxa8 {[%emt 0:00:01]} 38. Ra1 {[%emt 0:00:02]} Bc6 {[%emt 0:00:13]} 39. Ra7+ {[%emt 0:00:11]} Kd6 {[%emt 0:00:06]} 40. Ng4 {[%emt 0:00:23]} Rxh4 {[%emt 0:00:03]} 41. Nxf6 {[%emt 0:00:01]} Kc5 {[%emt 0:00:27]} 42. Rc7 {[%emt 0:00:24]} Kd6 {[%emt 0:00:39]} 43. Rg7 {[%emt 0:00:11]} Rh2+ {[%emt 0:00:32]} 44. Kc3 {[%emt 0:00:05]} Rf2 {[%emt 0:00:12]} 45. b4 {[%emt 0:00:20]} Rf3+ {[%emt 0:00:25]} 46. Kd2 {[%emt 0:00:07]} Nh5 {[%emt 0:00:10]} 47. Nxh5 {[%emt 0:00:07]} gxh5 {[%emt 0:00:00]} 48. Rg6+ {[%emt 0:00:03]} Kc7 {[%emt 0:00:04]} 49. Rg7+ {[%emt 0:00:16]} Kb6 {[%emt 0:00:05]} 50. Rg6 {[%emt 0:00:04]} Kc7 {[%emt 0:00:07]} 51. Rg7+ {[%emt 0:00:15]} Kb8 {[%emt 0:00:08]} 52. Rg5 {[%emt 0:00:11]} h4 {[%emt 0:00:16]} 53. Rxe5 {[%emt 0:00:11]} h3 {[%emt 0:00:01]} 54. Bd5 {[%emt 0:00:13]} Bxd5 {[%emt 0:00:28]} 55. Rxd5 {[%emt 0:00:12]} Rf4 {[%emt 0:00:17]} 56. Rh5 {[%emt 0:00:11]} Rxe4 {[%emt 0:00:02]} 1/2-1/2

[Event "FIDE Open World Rapid 2024"]
[Site "New York"]
[Date "2024.12.27"]
[Round "7.23"]
[White "Sadhwani, Raunak"]
[Black "Ghosh, Diptayan"]
[Result "1-0"]
[ECO "C54"]
[WhiteElo "2673"]
[BlackElo "2569"]
[Annotator "ChessBase"]
[PlyCount "47"]
[EventDate "2024.12.14"]
[EventType "swiss"]
[EventCountry "USA"]
[SourceTitle "playchess.com"]
[Source "ChessBase"]
[SourceQuality "1"]
[TimeControl "900+10"]

1. e4 {[%emt 0:00:02]} e5 {[%emt 0:00:05]} 2. Nf3 {[%emt 0:00:01]} Nc6 {[%emt 0:00:02]} 3. Bc4 {[%emt 0:00:02]} Nf6 {[%emt 0:00:05]} 4. d3 {[%emt 0:00:02]} Bc5 {[%emt 0:00:11]} 5. O-O {[%emt 0:00:02]} d6 {[%emt 0:00:02]} 6. c3 {[%emt 0:00:02]} a5 {[%emt 0:00:04]} 7. Re1 {[%emt 0:00:21]} O-O {[%emt 0:00:04]} 8. h3 {[%emt 0:00:27]} Be6 {[%emt 0:00:02]} 9. b3 {[%emt 0:00:06]} Re8 {[%emt 0:02:15]} 10. Nbd2 {[%emt 0:00:13]} d5 {[%emt 0:01:01]} 11. exd5 {[%emt 0:00:30]} Bxd5 {[%emt 0:00:36]} 12. Bb5 {[%emt 0:01:20]} Qd6 {[%emt 0:04:03]} 13. a4 {[%emt 0:02:35]} e4 {[%emt 0:00:14]} 14. dxe4 {[%emt 0:00:12]} Bxe4 {[%emt 0:00:12]} 15. Bb2 {[%emt 0:03:04]} Qf4 {[%emt 0:01:32]} 16. Nxe4 {[%emt 0:01:24]} Nxe4 {[%emt 0:00:04]} 17. Re2 {[%emt 0:00:00]} Re6 {[%emt 0:02:43]} 18. Qc1 {[%emt 0:01:08]} Qd6 {[%emt 0:02:00]} 19. Qc2 {[%emt 0:02:25]} Rae8 {[%emt 0:00:03]} 20. Bc4 {[%emt 0:00:46]} Ne5 {[%emt 0:01:48]} 21. Bxe6 {[%emt 0:01:26]} Nxf3+ {[%emt 0:00:20]} 22. gxf3 {[%emt 0:00:01]} Rxe6 {[%emt 0:01:12]} 23. Rxe4 {[%emt 0:00:16]} Rxe4 {[%emt 0:00:11]} 24. fxe4 {[%emt 0:00:05]} 1-0